bitfinex-derivatives/quotes_SOLF0:USTF0_20251202
["timestamp","ask_amount","ask_price","bid_price","bid_amount"]
[1764686761473,0.05760695,132.71,132.68,2.57112634]
[1764686761779,0.05760695,132.71,132.68,0.05112634]
[1764686762273,0.05760695,132.71,132.69,112.2869]
[1764686762465,3.09,132.79,132.7,2.52]
[1764686762671,3.09,132.74,132.61,108.0885]
[1764686762976,3.09,132.74,132.63,108.0706]
[1764686763171,3.09,132.74,132.66,105.529]
[1764686763369,0.05230452,132.71,132.69,0.0500549]
[1764686763567,108.62895991,132.71,132.58,105.5923]
[1764686763774,3.09,132.69,132.57,3.28]
[1764686763968,108.6118,132.67,132.57,3.28]
[1764686764175,105.5145,132.68,132.53,3.28]
[1764686764176,108.6367,132.64,132.53,3.28]
[1764686764485,3.09,132.62,132.5,68.16]
[1764686764674,3.09,132.62,132.51,62.0]
[1764686764870,3.14050913,132.57,132.4,119.56379214]
[1764686765075,3.09,132.57,132.44,3.28]
[1764686765277,3.09,132.56,132.45,3.28]
[1764686765679,3.09,132.56,132.47,108.9582]
[1764686765880,3.09,132.56,132.47,3.28]
[1764686766083,0.0476499,132.53,132.5,0.05524673]
[1764686766582,3.1376499,132.53,132.5,0.05524673]
[1764686767482,0.0476499,132.53,132.45,108.974]
[1764686767678,3.09,132.55,132.45,3.28]
[1764686767886,3.09,132.53,132.46,62.0]
[1764686768079,108.7478,132.5,132.4,3.28]
[1764686768284,108.7478,132.5,132.36,105.7664]
[1764686768285,3.09,132.49,132.36,109.0464]
[1764686768483,0.05281372,132.44,132.41,0.04972606]
[1764686768681,71.43,132.53,132.41,3.10866443]
[1764686768876,3.23,132.53,132.43,108.7703]
[1764686769081,3.23,132.58,132.48,9.8527]
[1764686769290,3.23,132.58,132.48,3.06]
[1764686769789,0.049159,132.54,132.52,0.04882485]
[1764686770180,3.279159,132.54,132.52,0.04882485]
[1764686770685,3.279159,132.54,132.44,3.06]
[1764686770875,3.23,132.54,132.44,3.06]
[1764686771073,105.5965,132.58,132.44,3.06]
[1764686771074,3.23,132.53,132.45,62.0]
[1764686771277,3.23,132.58,132.47,3.06]
[1764686771680,3.23,132.58,132.47,108.7408]
[1764686771883,0.05281445,132.54,132.51,0.0525503]
[1764686773086,3.28281445,132.54,132.51,0.0525503]
[1764686773281,0.05281445,132.54,132.51,0.0525503]
[1764686774190,0.05281445,132.54,132.51,3.1125503]
[1764686774388,0.05281445,132.54,132.51,108.7612503]
[1764686774688,3.23,132.62,132.53,3.06]
[1764686774891,3.23,132.61,132.52,62.0]
[1764686775189,3.23,132.61,132.49,108.7212]
[1764686775190,10.0167,132.61,132.51,6.7916]
[1764686775490,3.23,132.61,132.52,105.6411]
[1764686775691,0.04979809,132.57,132.55,0.04969608]
[1764686776093,3.27979809,132.57,132.55,0.04969608]
[1764686776688,105.5567,132.63,132.55,0.04969608]
[1764686776689,3.23,132.65,132.55,108.72669608]
[1764686776895,105.498,132.7,132.58,105.593]
[1764686777088,3.23,132.69,132.6,108.6367]
[1764686777285,3.23,132.69,132.57,6.7885]
[1764686777491,3.23,132.68,132.57,6.7885]
[1764686777989,0.05650296,132.64,132.61,0.05360863]
[1764686778390,0.05650296,132.64,132.61,3.11360863]
[1764686778888,3.28650296,132.64,132.61,0.05360863]
[1764686779484,0.05650296,132.64,132.61,0.05360863]
[1764686779785,3.28650296,132.64,132.61,0.05360863]
[1764686780985,0.05650296,132.64,132.61,0.05360863]
[1764686781494,0.05650296,132.64,132.62,62.0]
[1764686781794,0.05650296,132.64,132.61,0.05360863]
[1764686783289,0.05650296,132.64,132.61,3.11360863]
[1764686783484,3.23,132.73,132.65,3.06]
[1764686783693,3.23,132.73,132.63,6.7854]
[1764686784101,3.23,132.73,132.65,6.7842]
[1764686784397,3.23,132.73,132.62,105.5613]
[1764686784599,0.05032055,132.7,132.68,0.0491625]
[1764686784897,105.453,132.76,132.68,0.0491625]
[1764686784898,3.23,132.77,132.69,3.06]
[1764686785093,3.23,132.77,132.65,108.5943]
[1764686785296,3.23,132.77,132.66,3.06]
[1764686785793,105.4042,132.82,132.68,3.06]
[1764686786002,0.04799946,132.76,132.74,0.05281085]
[1764686786189,10.0067,132.81,132.71,105.4898]
[1764686786384,3.28404176,132.76,132.74,0.05449041]
[1764686786589,10.06276802,132.76,132.74,0.05449041]
[1764686786884,3.23,132.75,132.64,3.06]
[1764686787086,3.23,132.75,132.6,108.6346]
[1764686787087,3.23,132.72,132.6,108.6346]
[1764686787292,3.23,132.69,132.6,3.06]
[1764686787491,108.7404,132.69,132.6,3.06]
[1764686787806,108.7404,132.69,132.63,0.05091641]
[1764686787807,3.28021259,132.66,132.63,0.05091641]
[1764686788488,0.05021259,132.66,132.63,0.05091641]
[1764686788799,3.28021259,132.66,132.63,0.05091641]
[1764686788984,3.23,132.63,132.57,62.0]
[1764686789191,3.23,132.63,132.51,108.7058]
[1764686789493,3.23,132.62,132.51,3.06]
[1764686789702,3.23,132.62,132.53,105.6329]
[1764686790098,3.28496993,132.59,132.56,0.05215666]
[1764686790302,3.28043062,132.59,132.56,0.05467771]
[1764686790502,0.05043062,132.59,132.56,0.05467771]
[1764686790801,0.05043062,132.59,132.56,108.72097771]
[1764686791103,0.05043062,132.59,132.57,6.7883]
[1764686791288,3.23,132.64,132.57,108.6611]
[1764686791487,3.23,132.68,132.57,108.6611]
[1764686791894,3.23,132.68,132.57,105.6011]
[1764686792197,3.23,132.68,132.58,65.06]
[1764686792394,0.04824573,132.64,132.62,0.05088783]
[1764686795409,3.25824573,132.64,132.62,0.05088783]
[1764686795610,3.25824573,132.64,132.54,3.28]
[1764686795808,3.21,132.64,132.54,3.28]
[1764686796107,9.9953,132.64,132.54,10.0699]
[1764686796503,0.04867126,132.6,132.58,3.33223384]
[1764686796705,3.21,132.69,132.58,3.28]
[1764686796906,3.21,132.69,132.58,108.8693]
[1764686797110,3.21,132.69,132.61,3.28]
[1764686797702,0.04968262,132.66,132.64,0.05315057]
[1764686798716,0.04968262,132.66,132.64,62.05315057]
[1764686799013,0.04968262,132.66,132.64,0.05315057]
[1764686799213,3.19968262,132.66,132.64,0.05315057]
[1764686800202,0.04968262,132.66,132.64,0.05315057]
[1764686800410,3.19968262,132.66,132.64,0.05315057]
[1764686801309,0.04968262,132.66,132.64,0.05315057]
[1764686801506,0.04968262,132.66,132.64,3.18315057]
[1764686802319,0.04968262,132.66,132.64,0.05315057]
[1764686803210,3.19968262,132.66,132.64,0.05315057]
[1764686803613,108.73038262,132.66,132.57,6.7882]
[1764686803917,3.15,132.66,132.56,3.13]
[1764686804119,3.15,132.7,132.58,3.13]
[1764686804320,3.15,132.69,132.59,6.7874]
[1764686804516,0.05144787,132.65,132.63,0.05317461]
[1764686804718,0.05144787,132.65,132.63,3.18317461]
[1764686804912,0.05144787,132.65,132.63,9.96847461]
[1764686805115,67.9,132.73,132.64,65.13]
[1764686805324,71.05,132.73,132.64,65.13]
[1764686805517,3.15,132.68,132.64,62.0]
[1764686805726,3.15,132.68,132.6,3.13]
[1764686806118,0.05696482,132.65,132.63,0.05084019]
[1764686806834,0.05696482,132.65,132.63,3.18084019]
[1764686807531,0.05696482,132.65,132.63,0.05084019]
[1764686808627,3.20696482,132.65,132.63,0.05084019]
[1764686809029,3.15,132.64,132.55,3.13]
[1764686809428,6.7857,132.63,132.56,6.789]
[1764686809627,105.5554,132.63,132.55,3.13]
[1764686810028,6.84481253,132.6,132.58,0.05026493]
[1764686810224,0.05761253,132.6,132.58,0.05026493]
[1764686811235,3.15,132.66,132.58,3.18026493]
[1764686811420,3.15,132.66,132.58,3.13]
[1764686811736,6.7851,132.64,132.58,3.13]
[1764686811919,108.6826,132.66,132.58,3.13]
[1764686812120,108.6826,132.66,132.59,62.0]
[1764686812325,3.15,132.63,132.61,0.04976097]
[1764686813028,9.936,132.63,132.61,0.04976097]
[1764686813229,3.20572658,132.64,132.61,0.04976097]
[1764686813622,3.15,132.62,132.61,0.04976097]
[1764686813827,3.15,132.62,132.54,3.13]
[1764686813828,3.15,132.62,132.54,9.9199]
[1764686814028,3.15,132.62,132.54,3.13]
[1764686814622,108.6831,132.66,132.54,3.13]
[1764686814931,0.05290194,132.61,132.59,0.04839815]
[1764686815131,0.05034355,132.61,132.59,0.04839815]
[1764686815833,0.05034355,132.61,132.6,62.0]
[1764686816034,3.20034355,132.61,132.6,62.0]
[1764686816330,3.20034355,132.61,132.52,3.13]
[1764686816531,3.15,132.61,132.52,3.13]
[1764686817333,0.0546797,132.58,132.55,3.18560787]
[1764686817539,3.15,132.65,132.56,3.13]
[1764686817737,3.15,132.65,132.59,6.7875]
[1764686817934,67.76,132.67,132.59,6.7875]
[1764686818331,70.91,132.67,132.57,9.9183]
[1764686818527,0.05508111,132.63,132.61,0.05107998]
[1764686819136,0.05508111,132.63,132.62,62.0]
[1764686819839,3.20508111,132.63,132.61,0.05107998]
[1764686820039,3.15,132.62,132.55,3.13]
[1764686820336,3.15,132.62,132.48,13.9479269]
[1764686820337,3.15,132.59,132.48,13.9479269]
[1764686820634,3.15,132.57,132.47,108.8092]
[1764686820933,3.15,132.65,132.55,108.7466]
[1764686821134,0.04880365,132.61,132.59,0.05006276]
[1764686821341,3.19880365,132.61,132.52,3.13]
[1764686821529,6.788,132.59,132.49,3.13]
[1764686821730,6.788,132.59,132.5,9.922]
[1764686821925,71.03,132.65,132.52,3.13]
[1764686822142,71.03,132.65,132.55,108.7454]
[1764686822443,0.05289856,132.61,132.59,3.18108237]
[1764686822643,0.05289856,132.61,132.59,0.05108237]
[1764686822838,3.20289856,132.61,132.59,0.05108237]
[1764686823332,0.05289856,132.61,132.59,0.05108237]
[1764686823535,3.15,132.65,132.59,0.05108237]
[1764686823536,3.15,132.7,132.6,3.13]
[1764686824043,1.49815,132.76,132.67,3.13]
[1764686824547,1.49815,132.76,132.69,3.13]
[1764686824736,0.04882158,132.73,132.71,3.13]
[1764686824943,0.04882158,132.73,132.7,0.05419121]
[1764686825137,3.19882158,132.73,132.7,0.05419121]
[1764686825636,3.15,132.72,132.61,3.13]
[1764686825837,67.92,132.74,132.63,3.13]
[1764686826038,6.7817,132.71,132.64,3.13]
[1764686826245,67.92,132.74,132.64,3.13]
[1764686826655,0.05357457,132.7,132.68,0.04866906]
[1764686826840,1.49815,132.76,132.68,3.17866906]
[1764686827141,1.49815,132.76,132.68,3.13]
[1764686827544,6.7796,132.75,132.68,3.13]
[1764686827736,106.95175,132.76,132.68,3.13]
[1764686827937,0.05654686,132.73,132.71,0.05643877]
[1764686828144,6.7809,132.72,132.71,0.05643877]
[1764686828334,105.5023,132.7,132.64,3.13]
[1764686828641,105.5023,132.7,132.59,3.13]
[1764686828642,6.7836,132.67,132.59,3.13]
[1764686829152,105.5541,132.63,132.55,3.11]
[1764686829348,105.5541,132.63,132.56,62.0]
[1764686829537,0.04954755,132.6,132.58,0.05704716]
[1764686829746,0.04785089,132.6,132.58,0.05704716]
[1764686830149,0.04785089,132.6,132.58,3.16704716]
[1764686830447,6.7835,132.67,132.59,3.11]
[1764686830633,105.5226,132.67,132.59,3.11]
[1764686830834,105.5231,132.67,132.59,3.11]
[1764686831040,105.5188,132.68,132.59,3.11]
[1764686831041,6.7843,132.66,132.59,3.11]
[1764686831241,3.11,132.69,132.6,3.11]
[1764686831450,0.05263618,132.66,132.63,0.05328725]
[1764686832944,108.589,132.73,132.65,3.11]
[1764686833143,6.7802,132.74,132.65,9.8942]
[1764686833446,69.29815,132.76,132.66,3.11]
[1764686833849,6.7798,132.75,132.67,3.11]
[1764686834045,0.0491573,132.72,132.7,0.05684952]
[1764686834752,0.0491573,132.72,132.7,3.16684952]
[1764686835250,1.49815,132.76,132.71,3.11]
[1764686835450,1.49815,132.76,132.72,3.11]
[1764686835857,0.0005463,132.76,132.73,108.5819]
[1764686836152,6.7747,132.85,132.77,3.11]
[1764686836350,0.05368018,132.82,132.8,0.05038922]
[1764686836554,108.4838,132.86,132.8,0.05038922]
[1764686836851,0.0568005,132.82,132.8,0.05038922]
[1764686837756,3.11,132.81,132.73,3.11]
[1764686837958,105.3994,132.83,132.73,3.11]
[1764686838253,3.11,132.81,132.73,3.11]
[1764686838456,105.4191,132.8,132.73,3.11]
[1764686838766,3.11,132.76,132.75,0.05465635]
[1764686838944,3.11,132.76,132.69,3.11]
[1764686839140,3.11,132.81,132.71,3.11]
[1764686839755,6.7773,132.8,132.71,3.11]
[1764686839960,0.05001477,132.77,132.74,3.15991992]
[1764686840144,0.05001477,132.77,132.74,0.04991992]
[1764686840757,0.05001477,132.77,132.74,62.04991992]
[1764686841952,3.11,132.86,132.76,105.4493]
[1764686842163,3.11,132.86,132.77,3.11]
[1764686842666,3.11,132.9,132.8,108.528]
[1764686842850,3.11,132.9,132.8,3.11]
[1764686843049,0.05303528,132.86,132.84,0.05681956]
[1764686843946,3.16303528,132.86,132.84,0.05681956]
[1764686844153,115.2645,132.85,132.76,3.11]
[1764686844457,9.8847,132.85,132.76,3.11]
[1764686844860,115.2644,132.85,132.76,3.11]
[1764686845160,0.05499554,132.82,132.79,0.05099097]
[1764686845357,3.11,132.8,132.79,0.05099097]
[1764686845563,105.4271,132.79,132.71,3.11]
[1764686845764,6.7759,132.82,132.73,3.11]
[1764686845962,108.4909,132.85,132.73,3.11]
[1764686846659,0.05195498,132.8,132.78,3.16287871]
[1764686846861,0.0521231,132.8,132.78,3.16287871]
[1764686848372,105.3637,132.87,132.78,3.16287871]
[1764686848559,3.11,132.89,132.8,3.11]
[1764686848761,6.7729,132.88,132.8,3.11]
[1764686848961,3.11,132.89,132.8,3.11]
[1764686849364,3.11,132.89,132.83,3.16548571]
[1764686849365,0.05373397,132.86,132.83,3.16548571]
[1764686849665,108.53503397,132.86,132.83,0.05548571]
[1764686849963,112.1539,132.85,132.83,0.05548571]
[1764686850448,105.42503397,132.86,132.83,0.05548571]
[1764686850449,0.05373397,132.86,132.83,0.05548571]
[1764686850852,0.05373397,132.86,132.83,3.16548571]
[1764686851567,105.42783397,132.86,132.83,0.05548571]
[1764686851751,0.05197574,132.86,132.83,0.05548571]
[1764686852767,6.82607574,132.86,132.83,0.05548571]
[1764686853260,0.05197574,132.86,132.83,0.05548571]
[1764686853863,6.82607574,132.86,132.83,0.05548571]
[1764686854561,0.05197574,132.86,132.83,0.05548571]
[1764686855360,0.05197574,132.86,132.83,3.25548571]
[1764686855765,3.38197574,132.86,132.83,0.05548571]
[1764686855961,6.7745,132.85,132.83,0.05548571]
[1764686856163,3.38197574,132.86,132.83,0.05548571]
[1764686856164,0.05197574,132.86,132.83,0.05548571]
[1764686856352,3.38197574,132.86,132.83,0.05548571]
[1764686856552,0.05197574,132.86,132.83,0.05548571]
[1764686856767,0.05197574,132.86,132.83,3.25548571]
[1764686857557,67.4,132.92,132.83,3.25548571]
[1764686857759,3.33,132.97,132.87,6.7731]
[1764686857963,3.33,132.97,132.88,3.2]
[1764686858270,108.6139,132.97,132.88,3.2]
[1764686858563,6.769,132.96,132.88,3.2]
[1764686858763,0.05703394,132.93,132.91,0.05207981]
[1764686859561,3.34703394,132.93,132.91,0.05207981]
[1764686859761,0.05703394,132.93,132.91,0.05207981]
[1764686860869,0.05703394,132.93,132.92,62.0]
[1764686861564,3.34703394,132.93,132.91,0.05207981]
[1764686861754,3.29,132.92,132.91,0.05207981]
[1764686861956,105.3315,132.91,132.84,3.12]
[1764686862163,3.29,132.92,132.84,3.12]
[1764686862361,105.3318,132.91,132.84,3.12]
[1764686862867,6.7721,132.9,132.84,3.12]
[1764686863167,105.3027,132.95,132.86,3.17715532]
[1764686863168,0.04920997,132.88,132.86,3.17715532]
[1764686863473,3.29,132.95,132.86,3.17538336]
[1764686863766,108.6154,132.92,132.82,3.12]
[1764686863971,6.772,132.9,132.82,3.12]
[1764686864181,105.3344,132.91,132.82,3.12]
[1764686864363,0.05043056,132.88,132.85,3.17085731]
[1764686865259,0.05043056,132.88,132.85,0.05085731]
[1764686866166,105.41113056,132.88,132.85,0.05085731]
[1764686866361,6.7733,132.87,132.85,0.05085731]
[1764686866760,112.1362,132.87,132.85,0.05085731]
[1764686867469,6.7733,132.87,132.81,3.12]
[1764686867674,6.774,132.86,132.81,3.12]
[1764686867975,105.3471,132.89,132.82,65.12]
[1764686868271,105.3555,132.88,132.82,65.12]
[1764686868472,0.05181925,132.86,132.84,0.04775633]
[1764686868663,3.29,132.85,132.84,0.04775633]
[1764686869373,3.29,132.85,132.76,67.28]
[1764686869560,105.399,132.83,132.76,67.28]
[1764686869760,105.3882,132.84,132.76,70.4]
[1764686869968,105.4039,132.82,132.76,70.4]
[1764686870168,105.3882,132.84,132.77,3.12]
[1764686870471,0.0568054,132.82,132.79,3.17554978]
[1764686870661,105.3313,132.91,132.81,3.12]
[1764686870865,108.6185,132.92,132.81,3.12]
[1764686871166,3.29,132.92,132.83,3.12]
[1764686871357,105.3323,132.91,132.83,3.12]
[1764686871558,10.0615,132.91,132.83,3.12]
[1764686871859,0.04873245,132.88,132.86,0.05027773]
[1764686872269,0.04873245,132.88,132.87,62.0]
[1764686873769,0.04873245,132.88,132.87,65.12]
[1764686874076,3.29,132.94,132.87,65.12]
[1764686874869,0.05361496,132.92,132.89,0.05590975]
[1764686878172,0.05361496,132.92,132.89,3.17590975]
[1764686878767,3.29,133.01,132.91,105.3235]
[1764686878965,3.86551197,133.02,132.95,3.12]
[1764686879373,3.29,133.07,132.98,3.12]
[1764686879574,3.29,133.1,133.01,6.7661]
[1764686879883,0.05384119,133.07,133.04,0.0513431]
[1764686880675,3.29,133.13,133.04,3.1713431]
[1764686880879,200.43676042,133.18,133.06,3.12]
[1764686880880,105.129,133.17,133.06,3.12]
[1764686881072,3.29,133.18,133.07,105.2044]
[1764686881376,3.29,133.18,133.1,3.12]
[1764686881569,105.1131,133.19,133.1,3.12]
[1764686881766,0.04850801,133.16,133.13,0.05000083]
[1764686882073,105.0596,133.26,133.13,3.17000083]
[1764686882291,3.29,133.24,133.14,3.12]
[1764686882467,3.29,133.24,133.15,3.12]
[1764686882876,108.3368,133.27,133.17,3.12]
[1764686883080,3.29,133.26,133.17,3.12]
[1764686883269,3.34191082,133.23,133.21,0.0490677]
[1764686883580,3.34191082,133.23,133.12,3.12]
[1764686883581,5.07676042,133.23,133.12,3.12]
[1764686883770,108.3609,133.24,133.12,3.12]
[1764686884075,3.29,133.24,133.14,9.8791]
[1764686884281,3.29,133.24,133.15,3.12]
[1764686884575,0.04979317,133.2,133.18,3.16799217]
[1764686884770,105.0494,133.27,133.18,3.17748237]
[1764686884972,108.3316,133.28,133.19,62.0]
[1764686885166,3.29,133.28,133.19,62.0]
[1764686885375,115.0817,133.28,133.2,3.12]
[1764686885773,0.048381,133.25,133.23,0.05349649]
[1764686886181,3.29,133.22,133.19,62.0]
[1764686886380,10.0455,133.22,133.16,3.12]
[1764686886588,3.29,133.22,133.16,3.12]
[1764686886874,3.29,133.26,133.16,3.12]
[1764686887076,105.0637,133.25,133.16,3.12]
[1764686887283,3.33855167,133.22,133.19,0.04870495]
[1764686887474,111.8528,133.21,133.19,0.04870495]
[1764686887675,108.4106,133.18,133.09,67.34]
[1764686887881,105.1262,133.17,133.09,70.46]
[1764686888085,105.1262,133.17,133.05,110.29336042]
[1764686888086,108.4419,133.14,133.05,8.19676042]
[1764686888278,108.4569,133.12,133.05,3.12]
[1764686888582,105.144,133.15,133.05,3.12]
[1764686888780,0.05043509,133.1,133.08,3.21]
[1764686888980,105.1286,133.17,133.08,3.26178533]
[1764686889276,3.1,133.13,133.09,62.0]
[1764686889782,9.8601,133.13,133.09,62.0]
[1764686889984,9.8601,133.13,133.04,3.21]
[1764686889985,0.04992777,133.12,133.1,0.04743006]
[1764686890176,115.07622777,133.12,133.1,0.05706531]
[1764686890477,3.14992777,133.12,133.1,0.05706531]
[1764686890775,0.04992777,133.12,133.1,0.05706531]
[1764686891175,0.04992777,133.12,133.1,3.26706531]
[1764686891382,108.2362,133.16,133.1,0.05706531]
[1764686891782,9.8591,133.15,133.1,0.05706531]
[1764686891967,3.1,133.19,133.1,3.26706531]
[1764686892173,3.1,133.19,133.1,3.21]
[1764686892386,108.28587337,133.16,133.13,0.05007863]
[1764686892574,108.2505,133.14,133.07,3.21]
[1764686892774,9.8604,133.13,133.02,3.21]
[1764686892979,9.8604,133.13,133.04,3.21]
[1764686893470,111.9294,133.12,133.04,3.21]
[1764686893675,0.05299705,133.1,133.07,0.04816893]
[1764686893871,3.1,133.08,133.07,0.04816893]
[1764686894483,6.7636,133.06,133.0,3.21]
[1764686894670,108.3031,133.08,133.0,3.21]
[1764686894671,3.1,133.08,133.0,3.21]
[1764686894872,108.2699,133.12,133.0,3.21]
[1764686895084,3.1,133.12,133.02,3.21]
[1764686895289,3.1,133.16,133.05,3.21]
[1764686895484,0.04980208,133.12,133.09,0.05455119]
[1764686895677,108.31760208,133.12,133.09,0.05455119]
[1764686895877,108.2878,133.1,133.01,3.21]
[1764686896077,105.1746,133.11,132.97,3.21]
[1764686896078,105.2286,133.04,132.97,3.21]
[1764686896482,105.2286,133.04,132.98,62.0]
[1764686896781,3.1,133.05,132.98,65.21]
[1764686896983,0.05763128,133.03,133.0,0.05514857]
[1764686897788,3.15763128,133.03,133.0,0.05514857]
[1764686897985,9.92323128,133.03,133.0,0.05514857]
[1764686898180,3.1,133.01,132.93,3.21]
[1764686898388,9.8675,132.99,132.9,3.21]
[1764686898685,3.1,133.03,132.94,108.5173]
[1764686898881,3.1,133.01,132.91,3.21]
[1764686899089,108.384,132.97,132.86,3.21]
[1764686899385,105.284,132.97,132.86,3.21]
[1764686899792,3.1,132.97,132.87,3.21]
[1764686899990,3.1,133.01,132.92,3.21]
[1764686900193,0.05340191,132.98,132.95,0.0480889]
[1764686900492,0.05340191,132.98,132.95,3.2580889]
[1764686900698,0.05340191,132.98,132.95,0.0480889]
[1764686901192,3.15340191,132.98,132.95,0.0480889]
[1764686901585,3.1,132.96,132.95,0.0480889]
[1764686901784,3.1,132.96,132.85,67.34]
[1764686901979,3.1,132.93,132.84,3.21]
[1764686902180,9.8711,132.92,132.84,3.21]
[1764686902381,3.1,132.92,132.84,3.21]
[1764686902887,3.1,132.98,132.88,3.21]
[1764686903589,70.52,132.97,132.88,3.21]
[1764686903792,3.1,132.97,132.88,3.21]
[1764686903994,0.05074746,132.94,132.91,3.26429616]
[1764686904194,3.1,133.03,132.93,3.21]
[1764686905203,0.05645676,132.99,132.97,3.26364255]
[1764686905497,0.05085181,132.99,132.97,3.26228509]
[1764686906086,0.05085181,132.99,132.97,0.05228509]
[1764686906393,0.05085181,132.99,132.97,3.26228509]
[1764686906590,3.1,133.06,132.99,105.2675]
[1764686906986,105.2317,133.04,132.88,3.21]
[1764686907192,11.84486042,132.98,132.84,3.21]
[1764686907392,3.1,132.97,132.85,65.21]
[1764686907690,0.05481402,132.92,132.9,0.05174405]
[1764686907894,3.1,132.91,132.9,0.05174405]
[1764686908394,3.1,132.96,132.9,3.26174405]
[1764686908790,5.07676042,133.01,132.9,10.03344405]
[1764686908791,3.1,133.0,132.9,10.03344405]
[1764686909093,3.1,133.0,132.9,3.21]
[1764686909388,3.1,133.0,132.94,0.04746559]
[1764686909389,0.04950882,132.96,132.94,0.04746559]
[1764686909593,3.14950882,132.96,132.94,0.04746559]
[1764686910197,0.04950882,132.96,132.94,0.04746559]
[1764686911697,3.14950882,132.96,132.94,0.04746559]
[1764686911998,3.1,132.95,132.88,62.0]
[1764686912191,9.8696,132.95,132.88,62.0]
[1764686912386,3.1,132.95,132.88,62.0]
[1764686912586,3.1,133.0,132.92,6.7707]
[1764686912783,70.64,133.0,132.9,105.3385]
[1764686912987,0.05746107,132.97,132.95,0.04945856]
[1764686913187,0.05150487,132.97,132.95,0.0563482]
[1764686914496,0.05150487,132.97,132.95,3.2063482]
[1764686914697,3.31,133.03,132.95,3.2063482]
[1764686915000,3.31,133.02,132.94,108.4533]
[1764686915488,3.31,133.0,132.9,108.4862]
[1764686915797,105.2313,133.04,132.94,0.05365694]
[1764686916000,105.0474,133.27,133.06,105.2121]
[1764686916297,68.34,133.26,133.11,5.07676042]
[1764686916600,68.34,133.26,133.12,62.0]
[1764686916898,0.05255758,133.2,133.12,62.0]
[1764686917095,6.7546,133.24,133.12,62.0]
[1764686917291,105.0511,133.27,133.12,62.0]
[1764686917486,75.1336,133.26,133.12,173.9228]
[1764686917687,68.38,133.26,133.14,105.147]
[1764686917902,0.0525379,133.21,133.19,0.04738]
[1764686918093,0.05402603,133.21,133.19,0.04738]
[1764686918295,3.31,133.25,133.19,0.04738]
[1764686919300,3.27,133.22,133.19,0.04738]
[1764686919496,3.32205151,133.22,133.19,0.04855389]
[1764686919698,0.05205151,133.22,133.19,0.04855389]
[1764686919898,0.05205151,133.22,133.2,105.0999]
[1764686920095,3.27,133.26,133.2,6.7565]
[1764686920402,3.27,133.26,133.17,105.1226]
[1764686920596,3.27,133.26,133.19,6.757]
[1764686920802,3.27,133.26,133.19,111.8661]
[1764686920998,3.27,133.26,133.2,105.0979]
[1764686921298,0.04998205,133.24,133.22,210.1688]
[1764686921499,71.61,133.3,133.23,105.0729]
[1764686921692,3.27,133.3,133.25,6.754]
[1764686922506,3.27,133.3,133.26,0.0494033]
[1764686922696,299.0,133.37,133.26,0.0494033]
[1764686922900,3.27,133.35,133.3,0.05637032]
[1764686923094,3.27,133.33,133.3,0.05637032]
[1764686923300,3.27,133.33,133.25,105.0568]
[1764686923503,3.27,133.33,133.26,105.0481]
[1764686923802,3.27,133.33,133.25,3.13]
[1764686924006,3.27,133.33,133.23,8.45235302]
[1764686924207,3.32131916,133.29,133.27,0.05235616]
[1764686924510,3.27,133.27,133.19,105.1077]
[1764686924902,3.27,133.27,133.17,3.13]
[1764686925108,3.27,133.27,133.15,111.8958]
[1764686925306,3.27,133.27,133.16,62.0]